Cogmind - Beta 12 @@@ ROGUE MODE // 2023.08.14 @ 22:12:52 Player: Richard Blunt Result: Self-destructed Performance ------------- Evolutions (3) 1500 Regions Visited (11) 2200 Robots Destroyed (97) 485 Value Destroyed (4187) 4187 Prototype IDs (44) 880 Alien Tech Used (0) 0 Bonus (1661) 1661 TOTAL SCORE: 10913 Bonus ------- High Alert Combat Kills 284 Follower Combat Kills 1302 Entered Garrisons 200 Aligned with FarCom 300 Friendly Fire -425 Cogmind --------- Core Integrity 679/700 Matter 290/300 Energy 325/325 System Corruption 2% Temperature Cool (0) Movement Treading (162) Location -7/Lower Caves Parts ------- > --- POWER (1) -------- Antimatter Reactor > --- PROPULSION (5) --- Light Treads Light Treads Armored Treads Heavy Treads > --- UTILITY (5) ------ Huge Storage Unit Improved Sensor Array Improved Signal Interpreter Hardened Medium Armor Plating Hacking Suite > --- WEAPON (2) ------- Heavy Battle Rifle Mass Driver > --- INVENTORY (25) --- Antimatter Reactor Heavy Treads Heavy Treads Improved Cooling System Improved Coolant Injector Hardened Medium Armor Plating Hardened Medium Armor Plating Reactive Plating Damper Plating Long-range Tractor Beam Tesla Rifle Heavy Beamcaster Advanced Plasma Cannon Heavy Battle Rifle KE Penetrator Flak Cannon Enhanced Gauss Cannon Improved Grenade Launcher Missile Launcher Powered Hammer Peak State ------------ > --- POWER ------------ Antimatter Reactor > --- PROPULSION ------- Light Treads Heavy Treads Heavy Treads > --- UTILITY ---------- Huge Storage Unit Improved Signal Interpreter Light Armor Plating Hacking Suite Long-range Tractor Beam > --- WEAPON ----------- Advanced Plasma Cannon Gauss Rifle > --- INVENTORY -------- Antimatter Reactor Light Treads Light Treads Light Treads Compact Wheel Improved Coolant Injector Improved Focal Shield Hardlight Generator Tesla Rifle Heavy Assault Rifle KE Penetrator Assault Cannon Assault Cannon Flak Cannon Mass Driver Enhanced Gauss Cannon Rocket Launcher Improved Grenade Launcher Powered Hammer [Rating: 60] Favorites ----------- Power Ion Engine Engine Ion Engine Power Core Light Nuclear Core Reactor Antimatter Reactor Propulsion Light Treads Treads Light Treads Wheel Compact Wheel Flight Unit Cooled VTOL Module Utility Light Armor Plating Device Improved Sensor Array Storage Huge Storage Unit Processor Targeting Computer Hackware Hacking Suite Protection Light Armor Plating Weapon Improved Assault Rifle Energy Gun Tesla Rifle Energy Cannon Advanced Plasma Cannon Ballistic Gun Improved Assault Rifle Ballistic Cannon Mass Driver Launcher Mini Grenade Launcher Special Weapon Mining Laser Impact Weapon Powered Hammer Special Melee Weapon Datajack Build | -11 -10 -10 -10 -9 -8 -8 -8 -7 -7 -7 -7 ------- Run | Jun Mat Min Exi Min Mat Gar Mat Fac Was Fac Low Slots Evolved 6 | . . . . . 4 . . 2 . . . Power . | . . . . . . . . . . . . Propulsion 3 | . . . . . 2 . . 1 . . . Utility 3 | . . . . . 2 . . 1 . . . Weapon . | . . . . . . . . . . . . Parts Attached 141 | 7 5 . 5 4 30 34 4 22 19 10 1 Power 12 | 1 . . . 1 2 2 . 2 3 1 . Engine 6 | 1 . . . 1 1 2 . 1 . . . Core 2 | . . . . . 1 . . 1 . . . Reactor 4 | . . . . . . . . . 3 1 . Propulsion 49 | 2 1 . . . 18 14 2 4 5 3 . Treads 47 | 2 1 . . . 17 14 2 4 4 3 . Leg . | . . . . . . . . . . . . Wheel 1 | . . . . . . . . . 1 . . Hover . | . . . . . . . . . . . . Flight 1 | . . . . . 1 . . . . . . Utility 42 | 2 2 . 2 . 7 7 2 10 6 3 1 Device 13 | 1 . . . . . 2 . 4 3 3 . Storage 5 | 1 1 . 1 . 2 . . . . . . Processor 2 | . . . . . 1 . . 1 . . . Hackware 4 | . . . . . 1 . 1 2 . . . Protection 18 | . 1 . 1 . 3 5 1 3 3 . 1 Artifact . | . . . . . . . . . . . . Weapon 38 | 2 2 . 3 3 3 11 . 6 5 3 . Energy Gun 2 | . . . . . 1 1 . . . . . Energy Cannon 1 | . . . . . . . . . 1 . . Ballistic Gun 18 | 2 2 . 2 2 2 4 . 1 3 . . Ballistic Cannon 9 | . . . . . . 3 . 3 1 2 . Launcher 1 | . . . . . . . . . . 1 . Special Weapon 1 | . . . . 1 . . . . . . . Impact Weapon 5 | . . . . . . 3 . 2 . . . Slashing Weapon . | . . . . . . . . . . . . Piercing Weapon . | . . . . . . . . . . . . Special Melee Weapon 1 | . . . 1 . . . . . . . . Unidentified Prototypes 4 | . 1 . . . 2 . . . 1 . . Parts Lost 27 | . . . 2 1 5 8 . 11 . . . Power 4 | . . . 1 . 1 . . 2 . . . Propulsion 10 | . . . . . 2 4 . 4 . . . Utility 9 | . . . 1 . 1 3 . 4 . . . Weapon 4 | . . . . 1 1 1 . 1 . . . Highest Loss Streak 7 | . . . 2 1 3 3 . 7 . . . To Critical Strikes . | . . . . . . . . . . . . Average Slot Usage (%) 97 | . 100 100 94 100 98 99 100 96 92 91 92 Engine 7 | . 14 14 13 14 4 9 9 2 . . . Core 1 | . . . . . 4 . . 3 . . . Reactor 1 | . . . . . . . . . 6 7 7 Treads 31 | . 28 28 28 28 35 35 36 36 30 29 30 Device 2 | . 7 . . . . . . 6 3 5 7 Storage 10 | . 14 14 14 14 11 9 9 7 7 7 7 Processor 4 | . . . . . 7 9 9 7 7 7 7 Hackware 1 | . . . . . 1 . . 6 7 7 7 Protection 12 | . 7 14 14 14 15 17 17 6 10 8 7 Ballistic Gun 15 | . 28 28 17 27 17 9 9 2 7 7 7 Ballistic Cannon 2 | . . . . . . 7 9 10 3 6 7 Naked Turns . | . . . . . . . . . . . . Heaviest Build 122 | 15 34 34 54 54 110 110 102 101 122 122 118 Greatest Support 130 | 40 40 40 40 40 80 80 80 100 130 130 130 Greatest Overweight (x) 1 | . . . 1 1 1 1 1 1 1 1 . Average Overweight (x) . | . . . . 1 . 1 1 . . . . Largest Inventory Capacity 25 | 8 15 15 20 20 25 25 25 25 25 25 25 Average Capacity 21 | 7 12 15 19 20 22 25 25 25 25 25 25 Most Carried 25 | 7 15 15 18 16 25 25 25 24 25 25 25 Average Carried 19 | 4 11 14 16 15 21 23 24 18 22 24 25 Final Capacity 25 | 8 15 15 20 20 25 25 25 25 25 25 25 Final Carried 25 | 7 15 15 15 15 23 25 25 15 25 25 25 Class Distribution -------------------- 51% | Mutant 48% | Scavenger-Mutant Dominant Class ---------------- Mutant | -10/Materials Mutant | -10/Mines Mutant | -10/Exiles Mutant | -9/Mines Mutant | -8/Materials Scavenger-Mutant | -8/Garrison Scavenger-Mutant | -8/Materials Scavenger-Mutant | -7/Factory Scavenger-Mutant | -7/Waste Scavenger-Mutant | -7/Factory Scavenger-Mutant | -7/Lower Caves Resources | -11 -10 -10 -10 -9 -8 -8 -8 -7 -7 -7 -7 ----------- Run | Jun Mat Min Exi Min Mat Gar Mat Fac Was Fac Low Matter Collected 3832 | 306 266 . 146 149 925 774 344 355 366 150 51 Remotely 500 | . . . . . . 128 . 86 286 . . Salvage Created 3494 | 157 353 . . . 1409 802 309 292 . 172 . Parts 194 | 10 32 . . 1 74 44 9 16 . 8 . Haulers Intercepted 6 | . 1 . . . 4 . . . . 1 . Recyclers Shooed 5 | . 2 . . . 2 . . 1 . . . Parts Field Recycled . | . . . . . . . . . . . . Retrieved Matter . | . . . . . . . . . . . . Parts Self-Destructed 3 | . . . . . . . . . . . 3 Prevented . | . . . . . . . . . . . . Kills | -11 -10 -10 -10 -9 -8 -8 -8 -7 -7 -7 -7 ------- Run | Jun Mat Min Exi Min Mat Gar Mat Fac Was Fac Low Combat Hostiles Destroyed 74 | . 11 . . . 24 22 6 8 . 3 . Guns 46 | . 11 . . . 24 10 . 1 . . . Cannons 26 | . . . . . . 12 5 6 . 3 . Classes Destroyed 14 | 3 5 . . . 2 . 1 3 . . . Worker 1 | 1 . . . . . . . . . . . Builder 1 | . 1 . . . . . . . . . . Tunneler 4 | 2 . . . 2 . . . . . . . Hauler 6 | . 1 . . . 4 . . . . 1 . Recycler 4 | 1 1 . . . . . 1 1 . . . Operator 1 | . . . . . . . . 1 . . . Watcher 4 | . 1 . . . 2 . 1 . . . . Swarmer 20 | . 9 . . . 3 5 . 3 . . . Grunt 29 | . 2 . . . 14 6 3 2 . 2 . Brawler 4 | . . . . . 1 2 1 . . . . Duelist 1 | . . . . . . . . 1 . . . Sentry 17 | . . . . . 6 9 1 1 . . . Hunter 1 | . . . . . . . 1 . . . . Programmer 2 | . . . . . . . . 1 . 1 . Thug 2 | . . . . . . 1 . . . 1 . Best Kill Streak 6 | 4 4 . . 1 3 6 6 2 . 1 . Combat Bots Only 6 | . 3 . . . 3 6 3 2 . 1 . Max Kills in Single Turn 2 | 2 1 . . 1 1 2 1 1 . 1 . Gunslinging . | . . . . . . . . . . . . Exploded . | . . . . . . . . . . . . Melee . | . . . . . . . . . . . . Uniques/NPCs Destroyed . | . . . . . . . . . . . . Combat | -11 -10 -10 -10 -9 -8 -8 -8 -7 -7 -7 -7 -------- Run | Jun Mat Min Exi Min Mat Gar Mat Fac Was Fac Low Damage Taken 5562 | . 240 . 664 35 1679 1218 549 1009 . 145 23 Core 422 | . 30 . 61 . 129 82 99 19 . 2 . Absorbed by Shields . | . . . . . . . . . . . . Regen/Repaired (Parts) 787 | . 61 . . . 576 . . . 86 41 23 Core Remaining (%) 68 | 100 . . . 63 . . 43 . . . . Volleys Fired 297 | 6 49 . 1 12 106 63 21 29 2 7 1 Largest 2 | 2 2 . 2 2 2 2 2 2 1 2 2 Hottest 100 | 40 46 . 46 100 46 69 69 88 98 90 90 Shots Fired 564 | 12 98 . 2 16 195 129 43 50 2 15 2 Gun 442 | 12 98 . 2 6 195 87 22 11 . 8 1 Cannon 112 | . . . . . . 42 21 39 2 7 1 Launcher . | . . . . . . . . . . . . Special 10 | . . . . 10 . . . . . . . Kinetic 552 | 12 98 . 2 6 195 129 43 50 . 15 2 Thermal 12 | . . . . 10 . . . . 2 . . Explosive . | . . . . . . . . . . . . Electromagnetic . | . . . . . . . . . . . . Robot Hit Streak 28 | 3 7 . . 3 28 23 10 11 . 3 1 Robot Miss Streak 6 | 2 5 . . 2 3 4 4 6 . 3 1 Penetration Max . | . . . . . . . . . . . . Secondary Targets 6 | . 1 . . . 5 . . . . . . Max Gunslinging Chain 1 | . 1 . . . 1 . . . . . . Shots Hit Robots 395 | 5 55 . 4 3 159 85 33 42 . 8 1 Core Hits 192 | 5 22 . . 1 68 55 14 19 . 8 . Critical Kills . | . . . . . . . . . . . . Critical Parts Destroyed 1 | . . . . . 1 . . . . . . Critical Strikes 1 | . . . . . 1 . . . . . . Destroy 1 | . . . . . 1 . . . . . . Melee Attacks 20 | . . . 4 . . 9 . 7 . . . Impact 16 | . . . . . . 9 . 7 . . . Slashing . | . . . . . . . . . . . . Piercing . | . . . . . . . . . . . . Sneak Attacks 4 | . . . 4 . . . . . . . . Combat Hostiles . | . . . . . . . . . . . . Follow-up Attacks . | . . . . . . . . . . . . Damage Inflicted 7292 | 93 745 11 . 87 2456 1779 748 978 . 363 32 Guns 5176 | 92 733 . . 49 2450 1171 380 191 . 110 . Cannons 1754 | . . . . . . 520 353 647 . 202 32 Explosions 114 | . . . . . . 67 . . . 47 . Melee 161 | . . . . . . 21 . 140 . . . Ramming 87 | 1 12 11 . 38 6 . 15 . . 4 . Kinetic 6930 | 92 733 . . 49 2450 1691 733 838 . 312 32 Thermal . | . . . . . . . . . . . . Explosive 67 | . . . . . . 67 . . . . . Electromagnetic 47 | . . . . . . . . . . 47 . Impact 161 | . . . . . . 21 . 140 . . . Slashing . | . . . . . . . . . . . . Piercing . | . . . . . . . . . . . . Highest Corruption 6 | . . . 5 5 6 6 6 . . 2 2 Average Corruption 4 | . . . 5 5 4 6 6 . . 2 2 Corruption Purged . | . . . . . . . . . . . . Corruption Blocked . | . . . . . . . . . . . . Effects 180 | . . . 1 37 45 70 18 . . 9 . Message Errors 44 | . . . . 8 10 20 6 . . . . Matter Fused 42 | . . . . 10 10 13 5 . . 4 . Heat Flow Errors 25 | . . . 1 6 6 8 3 . . 1 . Energy Discharges 15 | . . . . 3 3 9 . . . . . Parts Rejected 1 | . . . . . . 1 . . . . . Parts Fused 3 | . . . . . 2 1 . . . . . Data Loss (minor) 23 | . . . . 5 6 9 2 . . 1 . Data Loss (major) 14 | . . . . 3 5 3 1 . . 2 . Misfires 9 | . . . . 2 . 5 1 . . 1 . Alerts 2 | . . . . . 2 . . . . . . Weapon Failures 2 | . . . . . 1 1 . . . . . Overload Shots . | . . . . . . . . . . . . Overflow Damage 86 | . . . . . . 27 3 30 . 26 . Projectiles 34 | . . . . . . 8 . . . 26 . Explosions 19 | . . . . . . 19 . . . . . Melee 33 | . . . . . . . 3 30 . . . Knockbacks 28 | . . . . 2 . 4 6 16 . . . Impact 6 | . . . . 2 . . 1 3 . . . Kinetic 22 | . . . . . . 4 5 13 . . . Secondary . | . . . . . . . . . . . . Self-Inflicted Damage 90 | . . . . . . 82 . . . 8 . Shots 2 | . . . . . . 1 . . . 1 . Rammed 19 | 1 3 2 . 6 4 . 1 . . 2 . Targets Rammed 22 | 1 3 2 . 8 4 . 2 . . 2 . Kicked . | . . . . . . . . . . . . Crushed 3 | . . . . 2 . . 1 . . . . Highest Temperature 276 | . . . 93 239 258 276 264 90 92 181 30 Average Temperature 70 | . . . 56 71 74 81 71 25 52 45 19 Received Heat Transfer 2188 | . 30 . 100 18 900 477 243 402 . 18 . Effects 5 | . . . . . . 3 2 . . . . Interference 5 | . . . . . . 3 2 . . . . Siege Activations . | . . . . . . . . . . . . Robots Corrupted . | . . . . . . . . . . . . Combat Hostiles . | . . . . . . . . . . . . Parts Fried 2 | . . . . . . . 1 1 . . . Impact Corruptions 2 | . . . . . . . 1 1 . . . Robots Melted . | . . . . . . . . . . . . Combat Hostiles . | . . . . . . . . . . . . Parts Melted 1 | . . . . . . 1 . . . . . Heat Transferred . | . . . . . . . . . . . . Parts Sabotaged . | . . . . . . . . . . . . Parts Stolen . | . . . . . . . . . . . . Parts Stripped . | . . . . . . . . . . . . Power Chain Reactions 1 | . . . . . . . . . . 1 . Missiles Intercepted . | . . . . . . . . . . . . Alert | -11 -10 -10 -10 -9 -8 -8 -8 -7 -7 -7 -7 ------- Run | Jun Mat Min Exi Min Mat Gar Mat Fac Was Fac Low Peak Influence 1484 | 20 198 7 . 88 395 1484 739 213 65 616 . Initial 723 | . 13 7 . . 33 37 723 132 21 . . Average 276 | 3 80 7 . 10 229 778 486 109 15 407 . Maximum Alert Level 4 | . . . . . 2 4 3 1 . 2 . Low Security (%) 55 | 100 100 100 . 100 32 12 . 90 100 14 . Level 1 18 | . . . . . 67 7 47 9 . 4 . Level 2 15 | . . . . . . 29 18 . . 80 . Level 3 6 | . . . . . . 27 34 . . . . Level 4 4 | . . . . . . 23 . . . . . Level 5 . | . . . . . . . . . . . . High Security . | . . . . . . . . . . . . Max Security . | . . . . . . . . . . . . Squads Dispatched 18 | . 2 . . . 5 . . 1 . 10 . Investigation 5 | . 1 . . . 2 . . . . 2 . Extermination 3 | . . . . . . . . 1 . 2 . Reinforcement 5 | . 1 . . . 1 . . . . 3 . Assault . | . . . . . . . . . . . . Garrison 5 | . . . . . 2 . . . . 3 . Intercept . | . . . . . . . . . . . . Searches Triggered . | . . . . . . . . . . . . Construction Impeded . | . . . . . . . . . . . . Haulers Reinforced . | . . . . . . . . . . . . Active Scanning Responses . | . . . . . . . . . . . . Cargo Convoy Interrupts . | . . . . . . . . . . . . Stealth | -11 -10 -10 -10 -9 -8 -8 -8 -7 -7 -7 -7 --------- Run | Jun Mat Min Exi Min Mat Gar Mat Fac Was Fac Low Distress Signals 4 | . 1 . . . 2 . 1 . . . . Communications Jammed . | . . . . . . . . . . . . Distress Signals . | . . . . . . . . . . . . Times Spotted 145 | . 21 . 7 3 39 30 12 13 3 16 1 Peak Tracking Total 9 | . 4 . 9 2 5 8 3 5 1 5 1 Tactical Retreats 1 | . . . . . . 1 . . . . . Traps | -11 -10 -10 -10 -9 -8 -8 -8 -7 -7 -7 -7 ------- Run | Jun Mat Min Exi Min Mat Gar Mat Fac Was Fac Low Traps Triggered 13 | . . . . . 2 5 . 2 . 4 . Indirectly . | . . . . . . . . . . . . Trap Hack Attempts . | . . . . . . . . . . . . Triggered . | . . . . . . . . . . . . Disarmed . | . . . . . . . . . . . . Reprogrammed . | . . . . . . . . . . . . Reused . | . . . . . . . . . . . . Traps Extracted . | . . . . . . . . . . . . Installed . | . . . . . . . . . . . . Triggered . | . . . . . . . . . . . . Machines | -11 -10 -10 -10 -9 -8 -8 -8 -7 -7 -7 -7 ---------- Run | Jun Mat Min Exi Min Mat Gar Mat Fac Was Fac Low Machines Disabled 15 | . . . 1 . 1 9 . . . 4 . Max in Single Turn 2 | . . . 1 . 1 2 . . . 1 . Garrison Relay 5 | . . . . . . 5 . . . . . Phase Generator 1 | . . . . . . 1 . . . . . Machines Repaired . | . . . . . . . . . . . . Machines Sabotaged . | . . . . . . . . . . . . Overloaded Fab Kills . | . . . . . . . . . . . . Hacking | -11 -10 -10 -10 -9 -8 -8 -8 -7 -7 -7 -7 --------- Run | Jun Mat Min Exi Min Mat Gar Mat Fac Was Fac Low Machines Accessed 34 | . 10 . 1 1 10 4 2 2 . 4 . Terminals 25 | . 7 . . 1 6 4 2 2 . 3 . Fabricators . | . . . . . . . . . . . . Repair Stations 4 | . 1 . . . 2 . . . . 1 . Recycling Units 2 | . 2 . . . . . . . . . . Scanalyzers 1 | . . . . . 1 . . . . . . Garrison Access 1 | . . . . . 1 . . . . . . Total Hacks 125 | . 32 . 1 2 39 12 12 14 . 13 . Successful 66 | . 15 . 1 . 26 6 5 7 . 6 . Failed 59 | . 17 . . 2 13 6 7 7 . 7 . Catastrophic 8 | . 1 . . . 2 . 2 2 . 1 . Database Lockouts . | . . . . . . . . . . . . Manual 60 | . 19 . 1 3 5 4 7 12 . 9 . Terminals 94 | . 25 . . 2 18 12 12 14 . 11 . Fabricators . | . . . . . . . . . . . . Repair Stations 18 | . 4 . . . 12 . . . . 2 . Recycling Units 3 | . 3 . . . . . . . . . . Scanalyzers 7 | . . . . . 7 . . . . . . Garrison Access 2 | . . . . . 2 . . . . . . Terminal Hacks 42 | . 11 . 1 . 11 4 5 7 . 3 . Robot Analysis 7 | . 4 . . . 2 . . 1 . . . Prototype ID Bank 2 | . 1 . . . 1 . . . . . . Open Door 1 | . . . . . . 1 . . . . . Branch Access Points 3 | . 1 . . . . . . 1 . 1 . Emergency Access Points 1 | . . . . . . 1 . . . . . Terminal Index 1 | . . . . . . . . 1 . . . Scanalyzer Index 1 | . 1 . . . . . . . . . . Alert Level 4 | . . . . . 2 . 1 1 . . . Unreport Threat 6 | . . . . . 2 . 3 1 . . . Locate Traps 5 | . 1 . . . 1 . 1 1 . 1 . Hauler Manifests 2 | . 1 . . . 1 . . . . . . Zone Layout 6 | . 2 . . . 2 . . 1 . 1 . Garrison Registry 1 | . . . . . . 1 . . . . . Security Stations 1 | . . . . . . 1 . . . . . EX-Prototype ID Bank 1 | . . . 1 . . . . . . . . Fabricator Hacks . | . . . . . . . . . . . . Repair Station Hacks 14 | . 3 . . . 10 . . . . 1 . Scan Component 8 | . 2 . . . 5 . . . . 1 . Repair 6 | . 1 . . . 5 . . . . . . Recycling Unit Hacks . | . . . . . . . . . . . . Scanalyzer 4 | . . . . . 4 . . . . . . Insert Component 2 | . . . . . 2 . . . . . . Analyze 2 | . . . . . 2 . . . . . . Garrison Access Hacks 1 | . . . . . 1 . . . . . . Unlock Access 1 | . . . . . 1 . . . . . . Unauthorized Hacks 5 | . 1 . . . . 2 . . . 2 . Terminals 4 | . . . . . . 2 . . . 2 . Botnet 4 | . . . . . . 2 . . . 2 . Fabricators . | . . . . . . . . . . . . Repair Stations . | . . . . . . . . . . . . Recycling Units 1 | . 1 . . . . . . . . . . Tunnel 1 | . 1 . . . . . . . . . . Scanalyzers . | . . . . . . . . . . . . Garrison Access . | . . . . . . . . . . . . Data Cores Recovered 1 | . . . . . . . . 1 . . . Used . | . . . . . . . . . . . . Hacking Detections 30 | . 9 . . 1 8 4 2 2 . 4 . Full Trace Events 2 | . . . . . 1 . . . . 1 . Feedback Events . | . . . . . . . . . . . . Feedback Blocked . | . . . . . . . . . . . . Robot Schematics Acquired . | . . . . . . . . . . . . Robots Built . | . . . . . . . . . . . . Authchips . | . . . . . . . . . . . . Time . | . . . . . . . . . . . . Total Robot Build Rating . | . . . . . . . . . . . . Part Schematics Acquired 2 | . . . . . 2 . . . . . . Parts Built . | . . . . . . . . . . . . Authchips . | . . . . . . . . . . . . Time . | . . . . . . . . . . . . Total Part Build Rating . | . . . . . . . . . . . . Parts Repaired 6 | . 1 . . . 5 . . . . . . Time 193 | . 26 . . . 167 . . . . . . Parts Recycled . | . . . . . . . . . . . . Recycled Matter . | . . . . . . . . . . . . Retrieved Matter . | . . . . . . . . . . . . Retrieved Components . | . . . . . . . . . . . . Parts Scanalyzed 2 | . . . . . 2 . . . . . . Part Schematics Acquired 2 | . . . . . 2 . . . . . . Parts Damaged . | . . . . . . . . . . . . Bothacking | -11 -10 -10 -10 -9 -8 -8 -8 -7 -7 -7 -7 ------------ Run | Jun Mat Min Exi Min Mat Gar Mat Fac Was Fac Low Used RIF Installer . | . . . . . . . . . . . . Robots Hacked 4 | . . . 4 . . . . . . . . Non-combat 3 | . . . 3 . . . . . . . . Combat 1 | . . . 1 . . . . . . . . Robot Hacks Applied 4 | . . . 4 . . . . . . . . parse_system 4 | . . . 4 . . . . . . . . Relay Couplers Released 18 | . . . . . . 18 . . . . . Machine Destruction 18 | . . . . . . 18 . . . . . Fabnet Peak Effective % . | . . . . . . . . . . . . Robots Rewired 3 | . . . . . . 3 . . . . . Allies Hacked 1 | . . . . . . . . . . 1 . Hacks Repelled . | . . . . . . . . . . . . Allies | -11 -10 -10 -10 -9 -8 -8 -8 -7 -7 -7 -7 -------- Run | Jun Mat Min Exi Min Mat Gar Mat Fac Was Fac Low Total Allies 24 | . . . . 2 . 3 . . 19 . . Largest Group 19 | . . . . 2 2 3 . . 19 18 4 Highest-Rated Group 475 | . . . . 41 41 93 . . 475 461 109 Highest-Rated Ally 35 | . . . . 31 31 31 . . 35 35 31 Total Orders . | . . . . . . . . . . . . Ally Attacks 288 | . . . . 13 23 38 . . 103 108 3 Total Damage 5855 | . . . . 146 353 627 . . 2327 2364 38 Kills 54 | . . . . 6 10 9 . . 7 21 1 Allies Corrupted 2 | . . . . . . . . . . 2 . Allies Melted . | . . . . . . . . . . . . Intel | -11 -10 -10 -10 -9 -8 -8 -8 -7 -7 -7 -7 ------- Run | Jun Mat Min Exi Min Mat Gar Mat Fac Was Fac Low Robot Analysis Total 7 | . 4 . . . 2 . . 1 . . . Derelict Logs Recovered 2 | . . . . 1 . . . . . . 1 Drone Launches . | . . . . . . . . . . . . Drone Recoveries . | . . . . . . . . . . . . Exploration | -11 -10 -10 -10 -9 -8 -8 -8 -7 -7 -7 -7 ------------- Run | Jun Mat Min Exi Min Mat Gar Mat Fac Was Fac Low Turns Passed 13457 | 113 1459 215 1769 1563 2476 2124 518 553 1310 1262 95 Spaces Moved 6107 | 53 800 132 797 622 980 755 178 249 742 746 53 Core 7 | 7 . . . . . . . . . . . Treads 6100 | 46 800 132 797 622 980 755 178 249 742 746 53 Legs . | . . . . . . . . . . . . Wheels . | . . . . . . . . . . . . Hover . | . . . . . . . . . . . . Flight . | . . . . . . . . . . . . Fastest Speed 50 | 50 160 160 160 240 160 240 240 160 160 160 162 Average Speed 195 | 145 160 160 219 240 192 240 240 170 169 161 162 Slowest Speed 240 | 160 160 160 240 240 240 240 240 240 240 240 162 Overloaded Moves . | . . . . . . . . . . . . Propulsion Burnouts . | . . . . . . . . . . . . Robots Hopped . | . . . . . . . . . . . . Cave-ins Triggered . | . . . . . . . . . . . . Exploration Rate (%) 49 | 4 95 21 90 83 68 89 22 6 96 22 3 Regions Visited 11 Branch Regions 4 Pre-discovered Areas 3 | . 1 . . 2 . . . . . . . Known Exits Taken 3 | . 1 . . . 1 . . . . 1 . Unknown Exits Taken 5 | 1 . 1 1 1 . . 1 . . . . Scrap Searched 2 | . . . . 2 . . . . . . . Spaces Dug 3 | . . . . . . . . 1 2 . . Terrain Destroyed 88 | . . . . 4 . 72 2 1 2 7 . Melee 1 | . . . . . . . . 1 . . . Projectile 10 | . . . . 4 . . 2 . 2 2 . AOE 77 | . . . . . . 72 . . . 5 . Terrain Rammed . | . . . . . . . . . . . . Walls Destroyed . | . . . . . . . . . . . . Machines Disabled . | . . . . . . . . . . . . Actions | -11 -10 -10 -10 -9 -8 -8 -8 -7 -7 -7 -7 --------- Run | Jun Mat Min Exi Min Mat Gar Mat Fac Was Fac Low Total 7035 | 73 884 135 812 647 1383 923 224 313 793 788 60 Wait 265 | . 4 . . . 209 16 17 3 4 8 4 Move 6098 | 53 799 131 796 621 979 754 177 249 741 745 53 Hop . | . . . . . . . . . . . . Pick Up 87 | 7 14 1 2 2 28 16 1 2 9 5 . Fast Attach 42 | 7 2 . . . 12 3 . 2 7 8 1 Attach 39 | . 1 . 3 2 6 12 . 11 4 . . Detach 14 | . 1 . 2 . 3 1 . 1 6 . . Swap 60 | . 2 . 2 2 12 19 4 9 8 2 . Drop 74 | . 9 1 2 . 24 12 2 . 12 11 1 Fire 297 | 6 49 . 1 12 106 63 21 29 2 7 1 Melee 20 | . . . 4 . . 9 . 7 . . . Ram . | . . . . . . . . . . . . Kick . | . . . . . . . . . . . . Crush 21 | . 3 2 . 8 4 . 2 . . 2 . Escape Stasis 10 | . . . . . . 10 . . . . . Rewire 8 | . . . . . . 8 . . . . . Trap . | . . . . . . . . . . . . Miscellaneous . | . . . . . . . . . . . . Route ------- -11/Junkyard -10/Materials (discovered 5 exits: [*Mat x3] / *Min x2) -10/Mines -10/Exiles (discovered 2 exits: *Min x2) -9/Mines (discovered 2 exits: *Mat x2) -8/Materials (discovered 3 exits: *Fac x2 / Gar) -8/Garrison (discovered 4 exits: *Mat x4) -8/Materials -7/Factory (discovered 2 exits: Low x2) -7/Waste -7/Factory (discovered 2 exits: *Low x2) -7/Lower Caves History --------- Turn | Location | Event 52 | -11/Junkyard | Discovered new exit (range 14) 114 | -11/Junkyard | Entered Materials 301 | -10/Materials | Build established: Mutant 799 | -10/Materials | Discovered new exit (range 8) 930 | -10/Materials | Identified exit to Mines 1030 | -10/Materials | Discovered new exit (range 13) 1413 | -10/Materials | Repaired Lgt. Treads 1466 | -10/Materials | Discovered new exit (range 7) 1573 | -10/Materials | Entered Mines 1628 | -10/Mines | Deemed a non-threat by the Exiles lab entrance 1629 | -10/Mines | Discovered new exit (range 5) 1715 | -10/Mines | Assembled infested the area 1755 | -10/Mines | YI-UF0 nonchalantly dropped a Grenade Launcher on the ground 1788 | -10/Mines | Entered Exiles 1812 | -10/Exiles | Discovered new exit (range 15) 1830 | -10/Exiles | Met 8R-AWN 1857 | -10/Exiles | Met EX-HEX 1904 | -10/Exiles | Met EX-BIN 1990 | -10/Exiles | Met EX-DEC 2577 | -10/Exiles | Aligned with FarCom system 2579 | -10/Exiles | Given EX-Vault access code 2641 | -10/Exiles | Opened EX-Vault 2663 | -10/Exiles | Found 0b10 Alert Chip 2715 | -10/Exiles | Warned to stay clear of 0b10 Research branches 3093 | -10/Exiles | Visited The Gauntlet 3424 | -10/Exiles | Discovered new exit (range 12) 3497 | -10/Exiles | Attacked by the Exiles 3557 | -10/Exiles | Entered Mines 3761 | -9/Mines | Learned location of Storage (-9) 4422 | -9/Mines | Discovered new exit (range 6) 4834 | -9/Mines | Excavation squad dispatched 4834 | -9/Mines | A large section of the Mines collapsed 5086 | -9/Mines | Discovered new exit (range 10) 5120 | -9/Mines | Entered Materials 5120 | -8/Materials | Accompanied by 2 allies 5120 | -8/Materials | Evolved 4 slots: Propulsion x2, Utility x2 5125 | -8/Materials | Led the pair of lost Derelicts to an unsafe place 5170 | -8/Materials | Garrison activated, responded to threat 5428 | -8/Materials | Garrison activated, responded to threat 5662 | -8/Materials | Discovered new exit (range 12) 5782 | -8/Materials | Repaired Lgt. Treads 5810 | -8/Materials | Repaired Lgt. Treads 6647 | -8/Materials | Repaired Lgt. Treads 6701 | -8/Materials | Repaired Imp. Assault Rifle 6741 | -8/Materials | Repaired Reactive Plating 6814 | -8/Materials | Discovered new exit (range 16) 7247 | -8/Materials | Build established: Scavenger-Mutant 7591 | -8/Materials | Lost 3 parts (2n1w) 7594 | -8/Materials | Identified exit to Garrison 7596 | -8/Materials | Entered Garrison 7644 | -8/Garrison | Triggered checkpoint 7718 | -8/Garrison | Garrison Relay disabled 7880 | -8/Garrison | Lost 3 parts (2n1u) 7992 | -8/Garrison | Triggered checkpoint 8042 | -8/Garrison | Triggered checkpoint 8150 | -8/Garrison | Discovered new exit (range 10) 8176 | -8/Garrison | Triggered checkpoint 8247 | -8/Garrison | Learned Materials security intel 8347 | -8/Garrison | Garrison Relay disabled 8544 | -8/Garrison | Discovered new exit (range 59) 8544 | -8/Garrison | Discovered new exit (range 42) 8544 | -8/Garrison | Discovered new exit (range 36) 8544 | -8/Garrison | Discovered new exit (range 41) 8642 | -8/Garrison | Phase Generator disabled 9206 | -8/Garrison | Triggered checkpoint 9243 | -8/Garrison | Garrison Relay disabled 9643 | -8/Garrison | Garrison Relay disabled 9670 | -8/Garrison | Triggered checkpoint 9678 | -8/Garrison | Garrison Relay disabled 9720 | -8/Garrison | Entered Materials 10091 | -8/Materials | Core integrity fell below 50% 10204 | -8/Materials | Discovered new exit (range 11) 10238 | -8/Materials | Entered Factory 10238 | -7/Factory | Evolved 2 slots: Propulsion x1, Utility x1 10294 | -7/Factory | Identified exit to Lower Caves 10407 | -7/Factory | Lost 4 parts (1p2u1w) 10724 | -7/Factory | Lost 7 parts (1p4n2u) 10791 | -7/Factory | Sucked down chute 10791 | -7/Factory | Entered Waste 10811 | -7/Waste | Spotted C-40 Crusher 10897 | -7/Waste | Warlord forces began an assault 10926 | -7/Waste | Spotted C-40 Crusher 10931 | -7/Waste | Allies destroyed C-40 Crusher 10943 | -7/Waste | Spotted C-40 Crusher 10945 | -7/Waste | Allies destroyed C-40 Crusher 10958 | -7/Waste | Allies destroyed C-40 Crusher 11001 | -7/Waste | Spotted C-40 Crusher 11005 | -7/Waste | Allies destroyed C-40 Crusher 11039 | -7/Waste | Found Damper Plating 11256 | -7/Waste | Discovered new exit (range 13) 12098 | -7/Waste | Identified exit to Factory 12101 | -7/Waste | Entered Factory 12101 | -7/Factory | Accompanied by 18 allies 12312 | -7/Factory | Garrison activated, responded to threat 13363 | -7/Factory | Entered Lower Caves 13363 | -7/Lower Caves | Accompanied by 5 allies 13384 | -7/Lower Caves | Learned Factory security intel 13458 | -7/Lower Caves | Self-destructed Last Messages --------------- 13332_ ALERT: Hostiles spotted, dispatching reinforcements to Terminal F005. 13333_ System corrupted: Heat flow error (+195). LOCATION=LOWER CAVES GOAL=ESCAPE 13364_ C-30 ARC bursts open, deploying its payload. 13364_ H-55 Commando unfolds itself. 13364_ C4-DB9(g) destroyed. 13366_ Slug penetrates UZ-CED(l). 13370_ H-55 Commando destroyed. 13370_ KO-JR3(m) repairs Lgt. Treads. 13371_ Acquired 7 matter. 13373_ Acquired 44 matter. 13377_ Gauss Rifle fries itself beyond repair. 13377_ Lgt. Nuclear Core fries itself beyond repair. 13384_ Acquired derelict log, extracted data. Data stored: Factory security intel. 13388_ Targeting Computer fries itself beyond repair. 13447_ Dropped Hrd. Medium Armor Plating. 13447_ Acquired Hrd. Medium Armor Plating. Map ----- +----------------------------------------------------+ | | | | | | | | | ?????????????????????????????????????????????????? | | ?????????????????????????????????????????????????? | | ?????????????????????????????????????????????????? | | ?????????????????????????????????????????????????? | | ?????????????????????????????????????????????????? | | ?????????????????????????????????????????????????? | | ?????????????????????????????????????????????????? | | ?????????????????????????????????????????????????? | | ?????????????????????????????????????????????????? | | ?????????????????????????????????????????????????? | | ?????????????????????????????????????????????????? | | ?????????????????????????????????????????????????? | | ?????????????????????????????????????????????????? | | ?????????????????????????????????????????????????? | | ?????????????????????????####????????????????????? | | ?????????????????????????# ##???????????????????? | | ????????????????????????? #???????? ????????? | | ?????????????????????????# #?????? ????????? | | ????????????????????????## #?????? ???????? | | ????????????????????????# l##??? ???????? | | ???????????????????????## ### ??????? | | ???????????????????????# @ ??????? | | ???????????????????????## m ??????? | | ?????????????????????#####gm# #### ???????? | | ?????????????????????#[*## #######??????????????? | | ?????????????????????#%%% #####????????????????? | | ?????????????????????#=" #????????????????? | | ?????????????????????## ### #????????????????? | | ??????????????????????## ###????????????????????? | | ???????????????????????####??????????????????????? | | ?????????????????????????????????????????????????? | | ?????????????????????????????????????????????????? | | ?????????????????????????????????????????????????? | | ?????????????????????????????????????????????????? | | ?????????????????????????????????????????????????? | | ?????????????????????????????????????????????????? | | ?????????????????????????????????????????????????? | | ?????????????????????????????????????????????????? | | ?????????????????????????????????????????????????? | | ?????????????????????????????????????????????????? | | ?????????????????????????????????????????????????? | | ?????????????????????????????????????????????????? | | ?????????????????????????????????????????????????? | | ?????????????????????????????????????????????????? | | ?????????????????????????????????????????????????? | | ?????????????????????????????????????????????????? | +----------------------------------------------------+ Best States ------------- Heat Dissipation 61 Coolant Potential 80 Energy Generation 21 Energy Capacity 325 Matter Stores 500 Matter Capacity 500 Sight Range 16 Robot Scan Range 15 Terrain Scan Density 10 Armor Coverage 375 Resistance: KI 20 Resistance: TH 10 Evasion (%) 40 Targeting Accuracy 5 Recoil Reduction 5 Offensive Hacking 10 Defensive Hacking 10 Item Schematics ----------------- Hcp. Storage Unit | -8/Materials | Scanalyzed Imp. Signal Interpreter | -8/Materials | Scanalyzed Robot Schematics ------------------ None Fabricated ------------ Nothing Alien Tech Used ----------------- None Achievements -------------- None Challenges ------------ None Game ------ Seed DirtyEnhancedPropulsion Manual? 0 Play Time 02:31:20 Cumulative 172.2 hours Start 2023.03.04 @ 15:21:14 End 2023.08.14 @ 22:12:52 Sessions 7 Manual Loads 0 Difficulty Rogue Special Mode None Game No. 58 Rogue 58 Adventurer 0 Explorer 0 Win Type - Total 1 Types 1/0/0/0/0/0/0/0/0 Lore% 50 Gallery% 62 Achievement% 53 Wizard Run 0 Options --------- ASCII 0 Keyboard 1 Movement Vi Keybinds 0 Fullscreen 1 Font 18/SmallcapsGlow Map View 76x50 Tactical HUD 1 Map Filters NONE Filters NONE Steam 1 RUN: e0ed7d06-fd05-461d-8249-98cc3775f979